[Event "Late Titled Tuesday Blitz February 8 2022"]
[White "Tan, Jun Ying"]
[Black "Rustemov, Alexander"]
[WhiteFideId "5710413"]
[BlackFideId "4119002"]
[WhiteElo "1827"]
[BlackElo "2830"]
[Result "1-0"]
[Round "01"]
[TimeControl "180+1"]
[Date "2022.02.09"]
[WhiteClock "0:00:08"]
[BlackClock "0:00:13"]

1. d4 {[%clk 0:03:00]}  f5 {[%clk 0:02:58]} 2. e4 {[%clk 0:02:58]}  fxe4 {[%clk 0:02:56]} 3. Nc3 {[%clk 0:02:58]}  Nf6 {[%clk 0:02:57]} 4. Bg5 {[%clk 0:02:58]}  Nc6 {[%clk 0:02:56]} 5. d5 {[%clk 0:02:57]}  Ne5 {[%clk 0:02:56]} 6. Qe2 {[%clk 0:02:57]}  Nf7 {[%clk 0:02:55]} 7. Bxf6 {[%clk 0:02:56]}  exf6 {[%clk 0:02:54]} 8. Nxe4 {[%clk 0:02:56]}  Be7 {[%clk 0:02:34]} 9. d6 {[%clk 0:02:55]}  cxd6 {[%clk 0:02:31]} 10. O-O-O {[%clk 0:02:54]}  O-O {[%clk 0:02:29]} 11. Nc3 {[%clk 0:02:54]}  f5 {[%clk 0:02:24]} 12. Nd5 {[%clk 0:02:53]}  Bf6 {[%clk 0:02:01]} 13. Nf3 {[%clk 0:02:51]}  Ne5 {[%clk 0:01:56]} 14. Nxe5 {[%clk 0:02:17]}  dxe5 {[%clk 0:01:50]} 15. Qc4 {[%clk 0:02:17]}  Kh8 {[%clk 0:01:26]} 16. Nc7 {[%clk 0:02:12]}  b5 {[%clk 0:01:20]} 17. Qc5 {[%clk 0:01:33]}  Be7 {[%clk 0:01:16]} 18. Qxe5 {[%clk 0:01:27]}  d6 {[%clk 0:01:05]} 19. Qc3 {[%clk 0:01:04]}  Rb8 {[%clk 0:01:03]} 20. Nd5 {[%clk 0:00:54]}  Bg5+ {[%clk 0:01:00]} 21. f4 {[%clk 0:00:53]}  Bh6 {[%clk 0:00:57]} 22. g3 {[%clk 0:00:51]}  Be6 {[%clk 0:00:55]} 23. Bg2 {[%clk 0:00:51]}  Rc8 {[%clk 0:00:53]} 24. Qd4 {[%clk 0:00:45]}  Rc5 {[%clk 0:00:50]} 25. Kb1 {[%clk 0:00:42]}  a5 {[%clk 0:00:50]} 26. Rhe1 {[%clk 0:00:40]}  Bg8 {[%clk 0:00:48]} 27. c3 {[%clk 0:00:36]}  Re8 {[%clk 0:00:46]} 28. Rxe8 {[%clk 0:00:33]}  Qxe8 {[%clk 0:00:46]} 29. Qd3 {[%clk 0:00:32]}  g6 {[%clk 0:00:44]} 30. Nf6 {[%clk 0:00:30]}  Qe7 {[%clk 0:00:36]} 31. Nxg8 {[%clk 0:00:29]}  Kxg8 {[%clk 0:00:37]} 32. Qxd6 {[%clk 0:00:26]}  Qxd6 {[%clk 0:00:35]} 33. Rxd6 {[%clk 0:00:27]}  Bf8 {[%clk 0:00:33]} 34. Rd2 {[%clk 0:00:24]}  b4 {[%clk 0:00:33]} 35. Bd5+ {[%clk 0:00:22]}  Kg7 {[%clk 0:00:33]} 36. c4 {[%clk 0:00:22]}  Rc7 {[%clk 0:00:31]} 37. Re2 {[%clk 0:00:20]}  Bc5 {[%clk 0:00:31]} 38. Kc2 {[%clk 0:00:20]}  Re7 {[%clk 0:00:30]} 39. Rxe7+ {[%clk 0:00:18]}  Bxe7 {[%clk 0:00:31]} 40. Kb3 {[%clk 0:00:18]}  Bc5 {[%clk 0:00:31]} 41. Ka4 {[%clk 0:00:18]}  Bg1 {[%clk 0:00:28]} 42. h3 {[%clk 0:00:16]}  Bh2 {[%clk 0:00:25]} 43. g4 {[%clk 0:00:16]}  fxg4 {[%clk 0:00:23]} 44. hxg4 {[%clk 0:00:17]}  Bxf4 {[%clk 0:00:23]} 45. Kxa5 {[%clk 0:00:18]}  Bd6 {[%clk 0:00:23]} 46. Kb5 {[%clk 0:00:18]}  Kf6 {[%clk 0:00:20]} 47. c5 {[%clk 0:00:16]}  Be5 {[%clk 0:00:20]} 48. Kxb4 {[%clk 0:00:10]}  Bxb2 {[%clk 0:00:20]} 49. a4 {[%clk 0:00:10]}  Ke7 {[%clk 0:00:20]} 50. Kb5 {[%clk 0:00:10]}  Kd7 {[%clk 0:00:20]} 51. a5 {[%clk 0:00:10]}  Bd4 {[%clk 0:00:11]} 52. a6 {[%clk 0:00:09]}  Bxc5 {[%clk 0:00:11]} 53. Kxc5 {[%clk 0:00:08]}  Ke7 {[%clk 0:00:11]} 54. a7 {[%clk 0:00:08]}  Kf6 {[%clk 0:00:12]} 55. a8=Q {[%clk 0:00:08]}  Kg5 {[%clk 0:00:12]} 56. Qh8 {[%clk 0:00:08]}  h6 {[%clk 0:00:12]} 57. Qg7 {[%clk 0:00:08]}  h5 {[%clk 0:00:11]} 58. gxh5 {[%clk 0:00:08]}  Kxh5 {[%clk 0:00:12]} 59. Bf7 {[%clk 0:00:08]}  Kh4 {[%clk 0:00:12]} 60. Qxg6 {[%clk 0:00:08]}  Kh3 {[%clk 0:00:12]} 61. Qg5 {[%clk 0:00:08]}  Kh2 {[%clk 0:00:12]} 62. Qg4 {[%clk 0:00:08]}  Kh1 {[%clk 0:00:12]} 63. Bd5+ {[%clk 0:00:08]}  Kh2 {[%clk 0:00:13]} 64. Qg2# {[%clk 0:00:08]} 1-0


[Site "https://www.chess.com"]

[Event "Late Titled Tuesday Blitz February 8 2022"]
[White "Torres Hernandez, Leslie Carolin"]
[Black "Hardaway, Brewington"]
[WhiteFideId "8400504"]
[BlackFideId "30941849"]
[WhiteElo "1920"]
[BlackElo "1768"]
[Result "0-1"]
[Round "01"]
[TimeControl "180+1"]
[Date "2022.02.09"]
[WhiteClock "0:02:41"]
[BlackClock "0:02:51"]

1. e4 {[%clk 0:03:00]}  e5 {[%clk 0:03:00]} 2. Nf3 {[%clk 0:03:00]}  Nf6 {[%clk 0:03:00]} 3. Nxe5 {[%clk 0:02:59]}  Nc6 {[%clk 0:03:00]} 4. Nf3 {[%clk 0:02:57]}  Nxe4 {[%clk 0:02:58]} 5. Nc3 {[%clk 0:02:57]}  d5 {[%clk 0:02:57]} 6. Bb5 {[%clk 0:02:52]}  Bc5 {[%clk 0:02:55]} 7. d4 {[%clk 0:02:51]}  Bb4 {[%clk 0:02:54]} 8. O-O {[%clk 0:02:51]}  O-O {[%clk 0:02:52]} 9. Bxc6 {[%clk 0:02:47]}  Nxc3 {[%clk 0:02:51]} 10. bxc3 {[%clk 0:02:45]}  Bxc3 {[%clk 0:02:52]} 11. Bxb7 {[%clk 0:02:41]}  Bxb7 {[%clk 0:02:51]} 12. Rb1 {[%clk 0:02:41]}  Ba6 {[%clk 0:02:51]} 0-1


[Site "https://www.chess.com"]

[Event "Late Titled Tuesday Blitz February 8 2022"]
[White "Triapishko, Alexandr"]
[Black "Stankovic, Ivan G"]
[WhiteFideId "14122286"]
[BlackFideId "902837"]
[WhiteElo "2479"]
[BlackElo "2195"]
[Result "1-0"]
[Round "01"]
[TimeControl "180+1"]
[Date "2022.02.09"]
[WhiteClock "0:00:02"]
[BlackClock "0:00:01"]

1. e4 {[%clk 0:02:56]}  c5 {[%clk 0:02:59]} 2. Nf3 {[%clk 0:02:23]}  Nc6 {[%clk 0:02:59]} 3. Nc3 {[%clk 0:02:23]}  g6 {[%clk 0:02:59]} 4. d4 {[%clk 0:02:18]}  cxd4 {[%clk 0:03:00]} 5. Nxd4 {[%clk 0:02:19]}  Bg7 {[%clk 0:03:00]} 6. Nb3 {[%clk 0:02:19]}  Nf6 {[%clk 0:03:00]} 7. Be2 {[%clk 0:02:19]}  O-O {[%clk 0:03:01]} 8. g4 {[%clk 0:02:18]}  d6 {[%clk 0:02:49]} 9. g5 {[%clk 0:02:15]}  Nd7 {[%clk 0:02:45]} 10. h4 {[%clk 0:02:16]}  a5 {[%clk 0:02:45]} 11. a4 {[%clk 0:02:12]}  Nc5 {[%clk 0:02:42]} 12. h5 {[%clk 0:02:01]}  Nxb3 {[%clk 0:02:24]} 13. cxb3 {[%clk 0:02:02]}  Be6 {[%clk 0:02:24]} 14. Be3 {[%clk 0:01:44]}  Nb4 {[%clk 0:02:13]} 15. hxg6 {[%clk 0:01:20]}  fxg6 {[%clk 0:01:55]} 16. Rc1 {[%clk 0:01:18]}  Rc8 {[%clk 0:01:30]} 17. Bd4 {[%clk 0:00:55]}  Bxd4 {[%clk 0:01:30]} 18. Qxd4 {[%clk 0:00:56]}  Bxb3 {[%clk 0:01:20]} 19. Bg4 {[%clk 0:00:45]}  e5 {[%clk 0:01:05]} 20. Qe3 {[%clk 0:00:43]}  Rc7 {[%clk 0:00:41]} 21. Kd2 {[%clk 0:00:34]}  Rf4 {[%clk 0:00:36]} 22. f3 {[%clk 0:00:29]}  Qxg5 {[%clk 0:00:32]} 23. Ne2 {[%clk 0:00:28]}  Rxc1 {[%clk 0:00:29]} 24. Rxc1 {[%clk 0:00:28]}  Rxg4 {[%clk 0:00:25]} 25. fxg4 {[%clk 0:00:27]}  Qxe3+ {[%clk 0:00:12]} 26. Kxe3 {[%clk 0:00:28]}  Bxa4 {[%clk 0:00:12]} 27. Rc8+ {[%clk 0:00:28]}  Kf7 {[%clk 0:00:11]} 28. Rc7+ {[%clk 0:00:28]}  Kf6 {[%clk 0:00:11]} 29. Rxb7 {[%clk 0:00:27]}  h5 {[%clk 0:00:11]} 30. gxh5 {[%clk 0:00:27]}  gxh5 {[%clk 0:00:12]} 31. Ng3 {[%clk 0:00:25]}  h4 {[%clk 0:00:11]} 32. Nf5 {[%clk 0:00:25]}  Bc6 {[%clk 0:00:11]} 33. Rh7 {[%clk 0:00:21]}  d5 {[%clk 0:00:11]} 34. Nxh4 {[%clk 0:00:10]}  dxe4 {[%clk 0:00:10]} 35. Kd2 {[%clk 0:00:05]}  e3+ {[%clk 0:00:09]} 36. Kxe3 {[%clk 0:00:04]}  Nd5+ {[%clk 0:00:10]} 37. Kd2 {[%clk 0:00:04]}  Kg5 {[%clk 0:00:08]} 38. Nf3+ {[%clk 0:00:04]}  Kf4 {[%clk 0:00:09]} 39. Rf7+ {[%clk 0:00:02]}  Ke4 {[%clk 0:00:09]} 40. Ng5+ {[%clk 0:00:02]}  Kd4 {[%clk 0:00:09]} 41. Ne6+ {[%clk 0:00:03]}  Kc4 {[%clk 0:00:09]} 42. Rf8 {[%clk 0:00:02]}  e4 {[%clk 0:00:08]} 43. Rc8 {[%clk 0:00:03]}  Nb4 {[%clk 0:00:08]} 44. b3+ {[%clk 0:00:02]}  Kxb3 {[%clk 0:00:08]} 45. Nd4+ {[%clk 0:00:02]}  Kb2 {[%clk 0:00:04]} 46. Nxc6 {[%clk 0:00:03]}  Nd3 {[%clk 0:00:01]} 47. Rb8+ {[%clk 0:00:02]} 1-0


[Site "https://www.chess.com"]

[Event "Late Titled Tuesday Blitz February 8 2022"]
[White "Wachinger, Guenther"]
[Black "Pichot, Alan"]
[WhiteFideId "4604261"]
[BlackFideId "110973"]
[WhiteElo "2212"]
[BlackElo "2543"]
[Result "0-1"]
[Round "01"]
[TimeControl "180+1"]
[Date "2022.02.08"]
[WhiteClock "0:00:53"]
[BlackClock "0:01:35"]

1. e4 {[%clk 0:02:54]}  c5 {[%clk 0:02:59]} 2. Nf3 {[%clk 0:02:53]}  d6 {[%clk 0:03:00]} 3. d4 {[%clk 0:02:53]}  cxd4 {[%clk 0:03:00]} 4. Nxd4 {[%clk 0:02:54]}  Nf6 {[%clk 0:03:00]} 5. Nc3 {[%clk 0:02:54]}  a6 {[%clk 0:03:01]} 6. Qf3 {[%clk 0:02:54]}  e6 {[%clk 0:02:59]} 7. g4 {[%clk 0:02:53]}  Nc6 {[%clk 0:02:58]} 8. Nxc6 {[%clk 0:02:48]}  bxc6 {[%clk 0:02:59]} 9. g5 {[%clk 0:02:42]}  Nd7 {[%clk 0:02:59]} 10. Be3 {[%clk 0:02:43]}  Rb8 {[%clk 0:02:59]} 11. O-O-O {[%clk 0:02:41]}  Be7 {[%clk 0:02:49]} 12. Rg1 {[%clk 0:02:41]}  Qa5 {[%clk 0:02:46]} 13. Qh3 {[%clk 0:02:33]}  Qb4 {[%clk 0:02:40]} 14. g6 {[%clk 0:02:28]}  fxg6 {[%clk 0:02:33]} 15. Rxg6 {[%clk 0:02:22]}  hxg6 {[%clk 0:02:14]} 16. Qxh8+ {[%clk 0:02:20]}  Kf7 {[%clk 0:02:15]} 17. Bh3 {[%clk 0:01:38]}  Ne5 {[%clk 0:02:05]} 18. Rd4 {[%clk 0:01:05]}  Qxb2+ {[%clk 0:02:01]} 19. Kd2 {[%clk 0:01:05]}  Nf3+ {[%clk 0:01:38]} 20. Kd1 {[%clk 0:00:53]}  Qxc3 {[%clk 0:01:35]} 0-1


[Site "https://www.chess.com"]

[Event "Late Titled Tuesday Blitz February 8 2022"]
[White "Wu, Christopher"]
[Black "Ansh M Shah"]
[WhiteFideId "2040875"]
[BlackFideId "25033379"]
[WhiteElo "2652"]
[BlackElo "1819"]
[Result "1-0"]
[Round "01"]
[TimeControl "180+1"]
[Date "2022.02.09"]
[WhiteClock "0:00:41"]
[BlackClock "0:00:02"]

1. d4 {[%clk 0:03:00]}  Nf6 {[%clk 0:02:57]} 2. c4 {[%clk 0:02:59]}  e6 {[%clk 0:02:58]} 3. Nf3 {[%clk 0:02:58]}  c5 {[%clk 0:02:59]} 4. g3 {[%clk 0:02:57]}  cxd4 {[%clk 0:02:58]} 5. Nxd4 {[%clk 0:02:58]}  Nc6 {[%clk 0:02:59]} 6. Bg2 {[%clk 0:02:56]}  Bc5 {[%clk 0:02:58]} 7. Nb5 {[%clk 0:02:53]}  O-O {[%clk 0:02:56]} 8. O-O {[%clk 0:02:53]}  a6 {[%clk 0:02:55]} 9. Nd6 {[%clk 0:02:49]}  Ne8 {[%clk 0:02:50]} 10. Nxc8 {[%clk 0:02:46]}  Rxc8 {[%clk 0:02:49]} 11. Nc3 {[%clk 0:02:46]}  Nf6 {[%clk 0:02:43]} 12. Bf4 {[%clk 0:02:42]}  Re8 {[%clk 0:02:27]} 13. Rc1 {[%clk 0:02:39]}  h6 {[%clk 0:02:15]} 14. b3 {[%clk 0:02:31]}  Bd4 {[%clk 0:02:08]} 15. Qd3 {[%clk 0:02:13]}  Bxc3 {[%clk 0:01:10]} 16. Qxc3 {[%clk 0:02:09]}  d5 {[%clk 0:01:11]} 17. Rfd1 {[%clk 0:02:05]}  d4 {[%clk 0:00:21]} 18. Bxc6 {[%clk 0:01:59]}  dxc3 {[%clk 0:00:20]} 19. Rxd8 {[%clk 0:01:58]}  Rexd8 {[%clk 0:00:16]} 20. Bxb7 {[%clk 0:01:58]}  Rc5 {[%clk 0:00:11]} 21. Rxc3 {[%clk 0:01:46]}  Rd1+ {[%clk 0:00:07]} 22. Kg2 {[%clk 0:01:46]}  Nd5 {[%clk 0:00:05]} 23. Rc2 {[%clk 0:01:28]}  Nxf4+ {[%clk 0:00:06]} 24. gxf4 {[%clk 0:01:29]}  a5 {[%clk 0:00:06]} 25. e3 {[%clk 0:01:24]}  g5 {[%clk 0:00:06]} 26. Kf3 {[%clk 0:01:17]}  Rh1 {[%clk 0:00:05]} 27. Kg3 {[%clk 0:01:11]}  Rg1+ {[%clk 0:00:05]} 28. Kf3 {[%clk 0:01:09]}  g4+ {[%clk 0:00:04]} 29. Ke2 {[%clk 0:01:09]}  h5 {[%clk 0:00:03]} 30. Rd2 {[%clk 0:01:02]}  h4 {[%clk 0:00:02]} 31. Rd7 {[%clk 0:00:54]}  Kg7 {[%clk 0:00:03]} 32. Be4 {[%clk 0:00:47]}  Ra1 {[%clk 0:00:02]} 33. Rd2 {[%clk 0:00:46]}  a4 {[%clk 0:00:02]} 34. Rb2 {[%clk 0:00:41]}  a3 {[%clk 0:00:02]} 35. Rc2 {[%clk 0:00:41]}  Rh1 {[%clk 0:00:02]} 36. b4 {[%clk 0:00:41]} 1-0


[Site "https://www.chess.com"]

[Event "Late Titled Tuesday Blitz February 8 2022"]
[White "Yang, Cayden"]
[Black "Rudzinska, Michalina"]
[WhiteFideId "30967260"]
[BlackFideId "1172883"]
[WhiteElo "2618"]
[BlackElo "1904"]
[Result "1-0"]
[Round "01"]
[TimeControl "180+1"]
[Date "2022.02.09"]
[WhiteClock "0:00:32"]
[BlackClock "0:00:10"]

1. e4 {[%clk 0:03:00]}  a5 {[%clk 0:02:51]} 2. d4 {[%clk 0:02:59]}  b6 {[%clk 0:02:47]} 3. Bd3 {[%clk 0:02:53]}  g6 {[%clk 0:02:45]} 4. Nf3 {[%clk 0:02:52]}  Bg7 {[%clk 0:02:41]} 5. O-O {[%clk 0:02:52]}  Bb7 {[%clk 0:02:37]} 6. Nc3 {[%clk 0:02:49]}  e6 {[%clk 0:02:34]} 7. Qe2 {[%clk 0:02:45]}  Ne7 {[%clk 0:02:32]} 8. Bf4 {[%clk 0:02:38]}  d6 {[%clk 0:02:29]} 9. Rae1 {[%clk 0:02:20]}  Nd7 {[%clk 0:02:26]} 10. a4 {[%clk 0:01:56]}  O-O {[%clk 0:02:26]} 11. h4 {[%clk 0:01:56]}  Nf6 {[%clk 0:02:12]} 12. Nd2 {[%clk 0:01:35]}  c5 {[%clk 0:02:10]} 13. dxc5 {[%clk 0:01:27]}  bxc5 {[%clk 0:02:09]} 14. Nc4 {[%clk 0:01:26]}  e5 {[%clk 0:02:08]} 15. Bh2 {[%clk 0:01:24]}  Nc6 {[%clk 0:02:08]} 16. Nb5 {[%clk 0:01:19]}  Nd4 {[%clk 0:02:06]} 17. Qd1 {[%clk 0:01:20]}  Nxb5 {[%clk 0:02:05]} 18. axb5 {[%clk 0:01:20]}  Nh5 {[%clk 0:01:57]} 19. Kh1 {[%clk 0:01:10]}  Qf6 {[%clk 0:01:40]} 20. Qg4 {[%clk 0:01:00]}  Rad8 {[%clk 0:01:35]} 21. Ne3 {[%clk 0:00:59]}  Bc8 {[%clk 0:01:34]} 22. Qg5 {[%clk 0:00:53]}  Qxg5 {[%clk 0:01:34]} 23. hxg5 {[%clk 0:00:54]}  Nf4 {[%clk 0:01:34]} 24. Bc4 {[%clk 0:00:53]}  Be6 {[%clk 0:01:33]} 25. b3 {[%clk 0:00:51]}  Bxc4 {[%clk 0:01:32]} 26. Nxc4 {[%clk 0:00:51]}  Ne6 {[%clk 0:01:31]} 27. c3 {[%clk 0:00:49]}  Nxg5 {[%clk 0:01:28]} 28. Nxa5 {[%clk 0:00:49]}  Rb8 {[%clk 0:01:21]} 29. c4 {[%clk 0:00:49]}  Ne6 {[%clk 0:01:21]} 30. Nc6 {[%clk 0:00:49]}  Ra8 {[%clk 0:01:21]} 31. b6 {[%clk 0:00:46]}  Nd8 {[%clk 0:01:17]} 32. Ne7+ {[%clk 0:00:44]}  Kh8 {[%clk 0:01:17]} 33. Ra1 {[%clk 0:00:43]}  Rxa1 {[%clk 0:01:04]} 34. Rxa1 {[%clk 0:00:44]}  Bf6 {[%clk 0:01:04]} 35. Nd5 {[%clk 0:00:44]}  Bg5 {[%clk 0:01:03]} 36. Ra7 {[%clk 0:00:43]}  Nc6 {[%clk 0:00:43]} 37. Rc7 {[%clk 0:00:41]}  Na5 {[%clk 0:00:38]} 38. Ra7 {[%clk 0:00:35]}  Nc6 {[%clk 0:00:37]} 39. Ra6 {[%clk 0:00:31]}  Kg7 {[%clk 0:00:16]} 40. b7 {[%clk 0:00:31]}  Nb8 {[%clk 0:00:16]} 41. Rxd6 {[%clk 0:00:31]}  f6 {[%clk 0:00:12]} 42. Nc7 {[%clk 0:00:31]}  Bc1 {[%clk 0:00:09]} 43. Ne6+ {[%clk 0:00:31]}  Kf7 {[%clk 0:00:09]} 44. Nxf8 {[%clk 0:00:32]}  Kxf8 {[%clk 0:00:10]} 45. Rd8+ {[%clk 0:00:32]} 1-0


[Site "https://www.chess.com"]

[Event "Late Titled Tuesday Blitz February 8 2022"]
[White "Yang, Kaiqi"]
[Black "Stanisz, Patryk"]
[WhiteFideId "8604398"]
[BlackFideId "1123106"]
[WhiteElo "2373"]
[BlackElo "1876"]
[Result "1-0"]
[Round "01"]
[TimeControl "180+1"]
[Date "2022.02.09"]
[WhiteClock "0:00:02"]
[BlackClock "0:00:04"]

1. c4 {[%clk 0:03:00]}  c6 {[%clk 0:02:59]} 2. d4 {[%clk 0:03:00]}  d5 {[%clk 0:02:59]} 3. Nf3 {[%clk 0:03:00]}  e6 {[%clk 0:02:59]} 4. g3 {[%clk 0:02:53]}  Nf6 {[%clk 0:02:59]} 5. Bg2 {[%clk 0:02:53]}  Nbd7 {[%clk 0:02:58]} 6. O-O {[%clk 0:02:53]}  b6 {[%clk 0:02:57]} 7. Nc3 {[%clk 0:02:51]}  Bb7 {[%clk 0:02:57]} 8. Qc2 {[%clk 0:02:52]}  Rc8 {[%clk 0:02:56]} 9. Rd1 {[%clk 0:02:52]}  Be7 {[%clk 0:02:56]} 10. e4 {[%clk 0:02:46]}  dxe4 {[%clk 0:02:57]} 11. Nxe4 {[%clk 0:02:40]}  O-O {[%clk 0:02:50]} 12. Bf4 {[%clk 0:02:35]}  Nxe4 {[%clk 0:02:43]} 13. Qxe4 {[%clk 0:02:36]}  Nf6 {[%clk 0:02:43]} 14. Qe2 {[%clk 0:02:36]}  Re8 {[%clk 0:02:38]} 15. Ne5 {[%clk 0:02:36]}  Nd7 {[%clk 0:02:35]} 16. Nd3 {[%clk 0:02:24]}  Bf6 {[%clk 0:02:33]} 17. Qe3 {[%clk 0:02:14]}  Nf8 {[%clk 0:02:29]} 18. Ne5 {[%clk 0:02:13]}  Ng6 {[%clk 0:02:25]} 19. Nxg6 {[%clk 0:02:12]}  hxg6 {[%clk 0:02:26]} 20. h4 {[%clk 0:02:09]}  Qe7 {[%clk 0:02:22]} 21. Be5 {[%clk 0:01:57]}  Red8 {[%clk 0:02:20]} 22. c5 {[%clk 0:01:48]}  Bxe5 {[%clk 0:02:13]} 23. Qxe5 {[%clk 0:01:49]}  Ba6 {[%clk 0:02:01]} 24. Rac1 {[%clk 0:01:47]}  bxc5 {[%clk 0:00:46]} 25. dxc5 {[%clk 0:01:39]}  Rxd1+ {[%clk 0:00:32]} 26. Rxd1 {[%clk 0:01:40]}  Bc4 {[%clk 0:00:33]} 27. Rd6 {[%clk 0:01:18]}  Bd5 {[%clk 0:00:31]} 28. b4 {[%clk 0:01:10]}  Qb7 {[%clk 0:00:27]} 29. a3 {[%clk 0:01:06]}  Qa6 {[%clk 0:00:27]} 30. Bxd5 {[%clk 0:01:01]}  exd5 {[%clk 0:00:27]} 31. Qxd5 {[%clk 0:00:47]}  Qxa3 {[%clk 0:00:26]} 32. Qc4 {[%clk 0:00:19]}  Qa1+ {[%clk 0:00:23]} 33. Kg2 {[%clk 0:00:19]}  Re8 {[%clk 0:00:20]} 34. Rd7 {[%clk 0:00:18]}  Qf6 {[%clk 0:00:19]} 35. Rxa7 {[%clk 0:00:16]}  Re1 {[%clk 0:00:13]} 36. Qf4 {[%clk 0:00:13]}  Qe6 {[%clk 0:00:08]} 37. Ra8+ {[%clk 0:00:12]}  Kh7 {[%clk 0:00:07]} 38. Rd8 {[%clk 0:00:06]}  Qe2 {[%clk 0:00:06]} 39. Rd2 {[%clk 0:00:02]}  Qf1+ {[%clk 0:00:06]} 40. Kf3 {[%clk 0:00:02]}  Qh1+ {[%clk 0:00:06]} 41. Kg4 {[%clk 0:00:02]}  f5+ {[%clk 0:00:07]} 42. Kg5 {[%clk 0:00:02]}  Qf1 {[%clk 0:00:05]} 43. h5 {[%clk 0:00:02]}  Qh3 {[%clk 0:00:04]} 44. hxg6+ {[%clk 0:00:01]}  Kg8 {[%clk 0:00:04]} 45. Rd8+ {[%clk 0:00:02]}  Re8 {[%clk 0:00:04]} 46. Rxe8# {[%clk 0:00:02]} 1-0


[Site "https://www.chess.com"]

[Event "Late Titled Tuesday Blitz February 8 2022"]
[White "Yang, Qindong"]
[Black "Holt, Conrad"]
[WhiteFideId "8603758"]
[BlackFideId "2034387"]
[WhiteElo "2101"]
[BlackElo "2586"]
[Result "0-1"]
[Round "01"]
[TimeControl "180+1"]
[Date "2022.02.09"]
[WhiteClock "0:00:03"]
[BlackClock "0:00:10"]

1. d4 {[%clk 0:03:00]}  d5 {[%clk 0:02:57]} 2. c4 {[%clk 0:03:01]}  c6 {[%clk 0:02:57]} 3. Nf3 {[%clk 0:03:01]}  Nf6 {[%clk 0:02:57]} 4. Nc3 {[%clk 0:03:02]}  dxc4 {[%clk 0:02:58]} 5. e4 {[%clk 0:03:01]}  b5 {[%clk 0:02:57]} 6. Be2 {[%clk 0:03:01]}  e6 {[%clk 0:02:56]} 7. a4 {[%clk 0:03:01]}  b4 {[%clk 0:02:50]} 8. e5 {[%clk 0:03:01]}  Nd5 {[%clk 0:02:34]} 9. Ne4 {[%clk 0:03:00]}  Ba6 {[%clk 0:02:33]} 10. Bd2 {[%clk 0:03:00]}  Qa5 {[%clk 0:02:17]} 11. Rc1 {[%clk 0:02:52]}  Nb6 {[%clk 0:02:13]} 12. O-O {[%clk 0:02:21]}  Qxa4 {[%clk 0:02:09]} 13. Qe1 {[%clk 0:02:20]}  h6 {[%clk 0:01:58]} 14. Nc5 {[%clk 0:01:47]}  Bxc5 {[%clk 0:01:30]} 15. dxc5 {[%clk 0:01:47]}  Nd5 {[%clk 0:01:31]} 16. Bxc4 {[%clk 0:01:47]}  Bxc4 {[%clk 0:01:21]} 17. Rxc4 {[%clk 0:01:47]}  Nd7 {[%clk 0:01:21]} 18. Rg4 {[%clk 0:01:15]}  g6 {[%clk 0:01:19]} 19. Rh4 {[%clk 0:01:13]}  Nxc5 {[%clk 0:01:13]} 20. Bxb4 {[%clk 0:01:04]}  Nd3 {[%clk 0:01:11]} 21. Qd2 {[%clk 0:00:27]}  N3xb4 {[%clk 0:01:08]} 22. Rc1 {[%clk 0:00:17]}  Rd8 {[%clk 0:01:03]} 23. Rxh6 {[%clk 0:00:15]}  Rxh6 {[%clk 0:00:49]} 24. Qxh6 {[%clk 0:00:16]}  Nd3 {[%clk 0:00:43]} 25. Rf1 {[%clk 0:00:13]}  Qf4 {[%clk 0:00:41]} 26. Qg7 {[%clk 0:00:09]}  Ke7 {[%clk 0:00:28]} 27. Ra1 {[%clk 0:00:07]}  a5 {[%clk 0:00:23]} 28. h4 {[%clk 0:00:08]}  Ra8 {[%clk 0:00:14]} 29. Ra3 {[%clk 0:00:03]}  Nxb2 {[%clk 0:00:13]} 30. Rb3 {[%clk 0:00:03]}  Qc1+ {[%clk 0:00:11]} 31. Kh2 {[%clk 0:00:03]}  Nb4 {[%clk 0:00:11]} 32. Ng5 {[%clk 0:00:01]}  Qf4+ {[%clk 0:00:10]} 33. g3 {[%clk 0:00:02]}  Qxf2+ {[%clk 0:00:10]} 34. Kh3 {[%clk 0:00:03]}  N2d3 {[%clk 0:00:10]} 0-1


[Site "https://www.chess.com"]

[Event "Late Titled Tuesday Blitz February 8 2022"]
[White "Yeletsky, Ivan"]
[Black "Kiolbasa, Oliwia"]
[WhiteFideId "24180327"]
[BlackFideId "1154613"]
[WhiteElo "2348"]
[BlackElo "2190"]
[Result "0-1"]
[Round "01"]
[TimeControl "180+1"]
[Date "2022.02.09"]
[WhiteClock "0:00:03"]
[BlackClock "0:00:16"]

1. e4 {[%clk 0:02:59]}  e5 {[%clk 0:02:59]} 2. Nf3 {[%clk 0:02:59]}  Nc6 {[%clk 0:03:00]} 3. Bb5 {[%clk 0:02:58]}  a6 {[%clk 0:03:00]} 4. Ba4 {[%clk 0:02:58]}  Nf6 {[%clk 0:03:00]} 5. O-O {[%clk 0:02:58]}  Be7 {[%clk 0:03:00]} 6. d3 {[%clk 0:02:58]}  b5 {[%clk 0:03:00]} 7. Bb3 {[%clk 0:02:58]}  O-O {[%clk 0:02:59]} 8. a3 {[%clk 0:02:56]}  d6 {[%clk 0:02:58]} 9. Nc3 {[%clk 0:02:57]}  Na5 {[%clk 0:02:51]} 10. Ba2 {[%clk 0:02:56]}  c5 {[%clk 0:02:50]} 11. Nh4 {[%clk 0:02:35]}  Be6 {[%clk 0:02:48]} 12. Nf5 {[%clk 0:02:33]}  d5 {[%clk 0:02:39]} 13. Nxe7+ {[%clk 0:02:26]}  Qxe7 {[%clk 0:02:39]} 14. exd5 {[%clk 0:02:25]}  Bd7 {[%clk 0:02:37]} 15. Bg5 {[%clk 0:02:22]}  h6 {[%clk 0:02:35]} 16. Bh4 {[%clk 0:02:16]}  Bf5 {[%clk 0:02:31]} 17. Qf3 {[%clk 0:02:12]}  Bg6 {[%clk 0:02:30]} 18. Rae1 {[%clk 0:01:31]}  Rfe8 {[%clk 0:02:18]} 19. Ne4 {[%clk 0:01:20]}  Bxe4 {[%clk 0:02:17]} 20. dxe4 {[%clk 0:01:20]}  c4 {[%clk 0:02:11]} 21. Rd1 {[%clk 0:01:12]}  Nb7 {[%clk 0:02:11]} 22. c3 {[%clk 0:01:09]}  Nd6 {[%clk 0:02:09]} 23. Bb1 {[%clk 0:01:09]}  Rab8 {[%clk 0:02:03]} 24. Rfe1 {[%clk 0:01:04]}  a5 {[%clk 0:02:02]} 25. h3 {[%clk 0:00:58]}  Rec8 {[%clk 0:01:54]} 26. Bc2 {[%clk 0:00:52]}  Nde8 {[%clk 0:01:53]} 27. d6 {[%clk 0:00:47]}  Nxd6 {[%clk 0:01:42]} 28. Bxf6 {[%clk 0:00:47]}  gxf6 {[%clk 0:01:43]} 29. Qh5 {[%clk 0:00:44]}  Kh7 {[%clk 0:01:38]} 30. Rd5 {[%clk 0:00:32]}  Rd8 {[%clk 0:01:27]} 31. Red1 {[%clk 0:00:31]}  Ne8 {[%clk 0:01:18]} 32. Kh2 {[%clk 0:00:21]}  Ng7 {[%clk 0:01:12]} 33. Qf3 {[%clk 0:00:19]}  Ne6 {[%clk 0:01:06]} 34. g3 {[%clk 0:00:17]}  Nc7 {[%clk 0:01:01]} 35. Rd7 {[%clk 0:00:16]}  Rxd7 {[%clk 0:01:01]} 36. Qf5+ {[%clk 0:00:16]}  Kg7 {[%clk 0:00:47]} 37. Rxd7 {[%clk 0:00:17]}  Qc5 {[%clk 0:00:47]} 38. Qg4+ {[%clk 0:00:17]}  Kf8 {[%clk 0:00:42]} 39. Qf5 {[%clk 0:00:17]}  Kg7 {[%clk 0:00:38]} 40. Bd1 {[%clk 0:00:17]}  Ne6 {[%clk 0:00:34]} 41. Bh5 {[%clk 0:00:15]}  Nd8 {[%clk 0:00:25]} 42. Kg2 {[%clk 0:00:10]}  Qc6 {[%clk 0:00:22]} 43. Ra7 {[%clk 0:00:07]}  Rb7 {[%clk 0:00:20]} 44. Rxa5 {[%clk 0:00:05]}  Rd7 {[%clk 0:00:21]} 45. Qg4+ {[%clk 0:00:04]}  Kf8 {[%clk 0:00:20]} 46. Qf5 {[%clk 0:00:04]}  Kg7 {[%clk 0:00:20]} 47. Bg4 {[%clk 0:00:04]}  Rd2 {[%clk 0:00:20]} 48. Ra7 {[%clk 0:00:03]}  Qb6 {[%clk 0:00:18]} 49. Re7 {[%clk 0:00:03]}  Qc5 {[%clk 0:00:18]} 50. Re8 {[%clk 0:00:03]}  Ne6 {[%clk 0:00:18]} 51. Bh5 {[%clk 0:00:03]}  Nf4+ {[%clk 0:00:18]} 52. Kf3 {[%clk 0:00:02]}  Qxf2+ {[%clk 0:00:17]} 53. Kg4 {[%clk 0:00:03]}  Qe2+ {[%clk 0:00:15]} 54. Kh4 {[%clk 0:00:03]}  Ng2# {[%clk 0:00:16]} 0-1


[Site "https://www.chess.com"]